fUSD/lending_fUSD_20251025
["ID","MTS","AMOUNT","RATE_DAILY","PERIOD"]
[392351228,1761393046898,-180.3872281,0.00033967,2]
[392351229,1761393046908,-516.32,0.00033972,9]
[392351230,1761393046917,-500.0,0.00033972,9]
[392351231,1761393046927,-500.0,0.00033972,9]
[392351232,1761393046937,-500.0,0.00033972,9]
[392351233,1761393046947,-500.0,0.00033972,9]
[392351234,1761393046956,-500.0,0.00033972,9]
[392351235,1761393046966,-500.0,0.00033972,9]
[392351236,1761393046976,-500.0,0.00033972,9]
[392351237,1761393046985,-500.0,0.00033972,9]
[392351238,1761393046995,-500.0,0.00033972,9]
[392351239,1761393047004,-500.0,0.00033972,9]
[392351240,1761393047014,-500.0,0.00033972,9]
[392351241,1761393047023,-709.21,0.00033972,9]
[392351242,1761393047032,-500.0,0.00033972,9]
[392351243,1761393047041,-500.0,0.00033972,9]
[392351244,1761393047050,-500.0,0.00033972,9]
[392351245,1761393047059,-500.0,0.00033972,9]
[392351246,1761393047068,-500.0,0.00033972,9]
[392351247,1761393047078,-500.0,0.00033972,9]
[392351248,1761393047088,-500.0,0.00033972,9]
[392351249,1761393047097,-500.0,0.00033972,9]
[392351250,1761393047106,-500.0,0.00033972,9]
[392351251,1761393047117,-500.0,0.00033972,9]
[392351252,1761393047126,-500.0,0.00033972,9]
[392351253,1761393047137,-942.51,0.00033972,9]
[392351254,1761393047146,-500.0,0.00033972,9]
[392351255,1761393047161,-588.79276316,0.00033972,9]
[392351256,1761393047170,-500.0,0.00033972,9]
[392351257,1761393047179,-500.0,0.00033972,9]
[392351258,1761393047188,-553.68,0.00033972,9]
[392351259,1761393047199,-500.0,0.00033972,9]
[392351260,1761393047209,-500.0,0.00033972,9]
[392351261,1761393047218,-500.0,0.00033972,9]
[392351262,1761393047227,-500.0,0.00033972,9]
[392351263,1761393047237,-500.0,0.00033972,9]
[392351264,1761393047246,-500.0,0.00033972,9]
[392351265,1761393047255,-500.0,0.00033972,9]
[392351266,1761393047263,-151.0,0.00033972,30]
[392351267,1761393047273,-500.0,0.00033972,9]
[392351268,1761393047282,-500.0,0.00033972,7]
[392351269,1761393047291,-500.0,0.00033972,9]
[392351270,1761393047300,-500.0,0.00033972,9]
[392351271,1761393047309,-500.0,0.00033972,9]
[392351272,1761393047318,-500.0,0.00033972,9]
[392351273,1761393047328,-500.0,0.00033972,9]
[392351274,1761393047337,-601.98,0.00033972,9]
[392351275,1761393047346,-500.0,0.00033972,9]
[392351276,1761393047355,-500.0,0.00033972,9]
[392351277,1761393047365,-500.0,0.00033972,9]
[392351278,1761393047374,-500.0,0.00033972,9]
[392351279,1761393047384,-500.0,0.00033972,9]
[392351280,1761393047392,-500.0,0.00033972,9]
[392351281,1761393047403,-500.0,0.00033972,9]
[392351282,1761393047413,-500.0,0.00033972,9]
[392351283,1761393047422,-500.0,0.00033972,9]
[392351284,1761393047431,-500.0,0.00033972,9]
[392351285,1761393047440,-580.5,0.00033972,9]
[392351286,1761393047449,-500.0,0.00033972,9]
[392351287,1761393047460,-500.0,0.00033972,9]
[392351288,1761393047469,-500.0,0.00033972,9]
[392351289,1761393047478,-500.0,0.00033972,9]
[392351290,1761393047489,-500.0,0.00033972,9]
[392351291,1761393047498,-500.0,0.00033972,9]
[392351292,1761393047508,-512.1,0.00033972,9]
[392351293,1761393047518,-500.0,0.00033972,9]
[392351294,1761393047528,-500.0,0.00033972,9]
[392351295,1761393047538,-27349.58,0.00033972,9]
[392351296,1761393047547,-500.0,0.00033972,9]
[392351297,1761393047557,-612.62,0.00033972,9]
[392351298,1761393047566,-500.0,0.00033972,9]
[392351299,1761393047575,-500.0,0.00033972,9]
[392351300,1761393047584,-439.49986911,0.00033972,9]
[392351301,1761393047593,-647.33,0.00033972,9]
[392351302,1761393047602,-500.0,0.00033972,9]
[392351303,1761393047611,-601.16,0.00033972,9]
[392351304,1761393047621,-500.0,0.00033972,9]
[392351305,1761393047630,-377.1906306,0.00033972,9]
[392351306,1761393047640,-544.29,0.00033972,9]
[392351307,1761393047649,-500.0,0.00033972,9]
[392351308,1761393047658,-624.17,0.00033972,9]
[392351309,1761393047667,-500.0,0.00033972,9]
[392351310,1761393047677,-500.0,0.00033972,9]
[392351311,1761393047686,-1038.04,0.00033972,9]
[392351312,1761393047695,-453.92878916,0.00033972,9]
[392351313,1761393047705,-500.0,0.00033972,9]
[392351314,1761393047714,-543.66,0.00033972,9]
[392351315,1761393047723,-500.0,0.00033972,9]
[392351316,1761393047732,-500.0,0.00033972,9]
[392351317,1761393047742,-500.0,0.00033972,9]
[392351318,1761393047752,-500.0,0.00033972,9]
[392351319,1761393047762,-500.0,0.00033972,9]
[392351320,1761393047772,-500.0,0.00033972,9]
[392351321,1761393047780,-1864.54,0.00033972,9]
[392351322,1761393047789,-868.13,0.00033972,9]
[392351323,1761393047798,-500.0,0.00033972,9]
[392351324,1761393047807,-500.0,0.00033972,9]
[392351325,1761393047816,-624.88,0.00033972,9]
[392351326,1761393047825,-500.0,0.00033972,9]
[392351327,1761393047834,-500.0,0.00033972,9]
[392351328,1761393047843,-500.0,0.00033972,9]
[392351329,1761393047854,-500.0,0.00033972,9]
[392351330,1761393047865,-500.0,0.00033972,9]
[392351331,1761393047876,-500.0,0.00033972,9]
[392351332,1761393047885,-500.0,0.00033972,9]
[392351333,1761393047894,-500.0,0.00033972,9]
[392351334,1761393047903,-500.0,0.00033972,9]
[392351335,1761393047914,-500.0,0.00033972,9]
[392351336,1761393047924,-500.0,0.00033972,9]
[392351337,1761393047933,-394.4904194,0.00033972,9]
[392351338,1761393047942,-501.95,0.00033972,9]
[392351339,1761393047952,-500.0,0.00033972,9]
[392351340,1761393047961,-500.0,0.00033972,9]
[392351341,1761393047970,-233.66428488,0.00033972,2]
[392351342,1761393047979,-500.0,0.00033972,9]
[392351343,1761393047988,-500.0,0.00033972,9]
[392351344,1761393047998,-500.0,0.00033972,9]
[392351345,1761393048007,-628.44,0.00033972,9]
[392351346,1761393048017,-500.0,0.00033975,9]
[392351347,1761393048026,-500.0,0.00033975,9]
[392351348,1761393048036,-501.70351651,0.00033975,9]
[392351349,1761393048044,-513.4471244,0.00033975,9]
[392351350,1761393048053,-500.0,0.00033975,9]
[392351351,1761393048062,-500.0,0.00033975,9]
[392351352,1761393048071,-500.0,0.00033975,9]
[392351353,1761393048081,-500.0,0.00033975,9]
[392351354,1761393048091,-500.0,0.00033975,9]
[392351355,1761393048100,-500.0,0.00033975,9]
[392351356,1761393048110,-500.0,0.00033975,9]
[392351357,1761393048120,-521.56886228,0.00033975,9]
[392351358,1761393048130,-500.0,0.00033975,9]
[392351359,1761393048140,-500.0,0.00033975,9]
[392351360,1761393048150,-500.0,0.00033975,9]
[392351361,1761393048165,-500.0,0.00033975,9]
[392351362,1761393048175,-500.09100597,0.00033975,9]
[392351363,1761393048185,-500.0,0.00033975,9]
[392351364,1761393048195,-311.37775015,0.00033975,9]
[392351365,1761393048205,-500.0,0.00033975,9]
[392351366,1761393048214,-500.0,0.00033975,9]
[392351367,1761393048224,-500.0,0.00033975,9]
[392351368,1761393048235,-151.667609,0.00033975,9]
[392351369,1761393048244,-567.385756,0.00033975,9]
[392351370,1761393048253,-152.637139,0.00033975,9]
[392351371,1761393048262,-500.0,0.00033975,9]
[392351372,1761393048271,-175.908361,0.00033975,9]
[392351373,1761393048280,-500.0,0.00033975,9]
[392351374,1761393048288,-512.17,0.00033975,9]
[392351375,1761393048298,-910.887729,0.00033975,9]
[392351376,1761393048307,-500.0,0.00033975,9]
[392351377,1761393048316,-600.0,0.00033975,9]
[392351378,1761393048325,-500.0,0.00033975,9]
[392351379,1761393048334,-500.0,0.00033975,9]
[392351380,1761393048343,-500.0,0.00033975,9]
[392351381,1761393048351,-500.0,0.00033975,9]
[392351382,1761393048361,-535.51204105,0.00033975,9]
[392351383,1761393048369,-500.0,0.00033975,9]
[392351384,1761393048378,-503.96861882,0.00033975,9]
[392351385,1761393048387,-500.0,0.00033975,9]
[392351386,1761393048396,-500.0,0.00033975,9]
[392351387,1761393048406,-255.606673,0.00033975,30]
[392351388,1761393048416,-500.0,0.00033975,9]
[392351389,1761393048425,-500.0,0.00033975,9]
[392351390,1761393048435,-502.39,0.00033975,9]
[392351391,1761393048444,-500.0,0.00033975,9]
[392351392,1761393048454,-500.0,0.00033975,9]
[392351393,1761393048463,-501.22522122,0.00033975,9]
[392351394,1761393048474,-500.0,0.00033975,9]
[392351395,1761393048482,-500.0,0.00033975,9]
[392351396,1761393048492,-524.93,0.00033975,9]
[392351397,1761393048503,-500.0,0.00033975,9]
[392351398,1761393048513,-500.0,0.00033975,9]
[392351399,1761393048522,-331.9891502,0.00033975,9]
[392351400,1761393048531,-246.70025851,0.00033975,9]
[392351401,1761393048539,-500.0,0.00033975,9]
[392351402,1761393048548,-546.69,0.00033975,9]
[392351403,1761393048557,-500.0,0.00033975,9]
[392351404,1761393048566,-500.0,0.00033975,9]
[392351405,1761393048575,-555.59,0.00033975,9]
[392351406,1761393048583,-500.0,0.00033975,9]
[392351407,1761393048592,-500.0,0.00033975,9]
[392351408,1761393048601,-587.22057977,0.00033975,9]
[392351409,1761393048610,-540.0,0.00033975,9]
[392351410,1761393048619,-500.0,0.00033975,9]
[392351411,1761393048628,-500.0,0.00033975,9]
[392351412,1761393048637,-500.0,0.00033975,2]
[392351413,1761393048646,-500.0,0.00033975,9]
[392351414,1761393048655,-500.0,0.00033975,9]
[392351415,1761393048665,-500.0,0.00033975,9]
[392351416,1761393048674,-500.0,0.00033975,9]
[392351417,1761393048683,-500.0,0.00033975,9]
[392351418,1761393048692,-501.81266505,0.00033975,9]
[392351419,1761393048701,-788.22,0.00033975,9]
[392351420,1761393048710,-500.0,0.00033975,9]
[392351421,1761393048718,-500.0,0.00033975,9]
[392351422,1761393048727,-500.43319797,0.00033975,2]
[392351423,1761393048737,-504.43,0.00033975,9]
[392351424,1761393048746,-500.0,0.00033975,9]
[392351425,1761393048755,-500.0,0.00033975,9]
[392351426,1761393048763,-2147.12,0.00033975,9]
[392351427,1761393048772,-500.0,0.00033975,9]
[392351428,1761393048781,-500.0,0.00033975,9]
[392351429,1761393048790,-500.0,0.00033975,9]
[392351430,1761393048799,-500.0,0.00033975,9]
[392351431,1761393048809,-300.0,0.00033975,2]
[392351432,1761393048818,-755.77,0.00033975,9]
[392351433,1761393048827,-541.75,0.00033975,9]
[392351434,1761393048837,-677.29,0.00033975,9]
[392351435,1761393048847,-500.0,0.00033975,9]
[392351436,1761393048855,-583.3,0.00033975,9]
[392351437,1761393048864,-500.0,0.00033975,9]
[392351438,1761393048872,-500.0,0.00033975,9]
[392351439,1761393048881,-460.76615753,0.00033975,9]
[392351440,1761393048890,-568.48,0.00033975,9]
[392351441,1761393048898,-500.0,0.00033975,9]
[392351442,1761393048907,-500.0,0.00033975,9]
[392351443,1761393048916,-500.0,0.00033975,9]
[392351444,1761393048924,-500.0,0.00033975,9]
[392351445,1761393048933,-500.0,0.00033975,9]
[392351446,1761393048942,-502.76254837,0.00033975,9]
[392351447,1761393048951,-500.0,0.00033975,9]
[392351448,1761393048960,-500.0,0.00033975,9]
[392351449,1761393048968,-504.95,0.00033975,9]
[392351450,1761393048977,-500.0,0.00033975,9]
[392351451,1761393048986,-500.0,0.00033975,9]
[392351452,1761393048994,-500.0,0.00033975,9]
[392351453,1761393049003,-480.52931902,0.00033975,9]
[392351454,1761393049011,-500.0,0.00033975,2]
[392351455,1761393049020,-500.0,0.00033975,9]
[392351456,1761393049028,-500.0,0.00033975,9]
[392351457,1761393049037,-500.0,0.00033975,9]
[392351458,1761393049045,-151.0,0.00033975,30]
[392351459,1761393049054,-1911.04,0.00033975,9]
[392351460,1761393049062,-847.34,0.00033975,9]
[392351461,1761393049070,-500.0,0.00033975,9]
[392351462,1761393049079,-241.074515,0.00033975,30]
[392351463,1761393049087,-500.0,0.00033975,9]
[392351464,1761393049096,-500.0,0.00033975,9]
[392351465,1761393049105,-1578.34,0.00033975,9]
[392351466,1761393049113,-500.0,0.00033975,9]
[392351467,1761393049122,-500.0,0.00033975,9]
[392351468,1761393049130,-500.0,0.00033975,9]
[392351469,1761393049139,-620.95,0.00033975,9]
[392351470,1761393049147,-500.0,0.00033975,9]
[392351471,1761393049160,-548.9,0.00033975,9]
[392351472,1761393049169,-500.0,0.00033975,9]
[392351473,1761393049179,-500.0,0.00033975,9]
[392351474,1761393049187,-500.0,0.00033975,9]
[392351475,1761393049198,-500.0,0.00033975,9]
[392351476,1761393049207,-500.0,0.00033975,9]
[392351477,1761393049216,-500.0,0.00033975,9]
[392351478,1761393049224,-500.0,0.00033975,9]
[392351479,1761393049236,-885.44,0.00033975,9]
[392351480,1761393049245,-500.0,0.00033975,9]
[392351481,1761393049254,-15522.42,0.00033975,9]
[392351482,1761393049263,-500.0,0.00033975,9]
[392351483,1761393049272,-589.76,0.00033975,9]
[392351484,1761393049280,-500.0,0.00033975,9]
[392351485,1761393049289,-645.57606024,0.00033975,9]
[392351486,1761393049298,-500.0,0.00033975,9]
[392351487,1761393049306,-500.0,0.00033975,9]
[392351488,1761393049315,-500.0,0.00033975,9]
[392351489,1761393049324,-164.03789325,0.00033975,9]
[392351490,1761393049333,-230.24012555,0.00033975,2]
[392351491,1761393049343,-500.0,0.00033975,9]
[392351492,1761393049352,-222.89213271,0.00033975,9]
[392351493,1761393049361,-1011.02,0.00033975,9]
[392351494,1761393049371,-500.0,0.00033975,9]
[392351495,1761393049380,-500.0,0.00033975,9]
[392351496,1761393049390,-500.0,0.00033975,9]
[392351497,1761393049400,-500.0,0.00033975,9]
[392351498,1761393049409,-558.03,0.00033975,9]
[392351499,1761393049418,-549.76,0.00033975,9]
[392351500,1761393049427,-500.0,0.00033975,9]
[392351501,1761393049436,-500.0,0.00033975,9]
[392351502,1761393049445,-214.77141972,0.00033975,9]
[392351503,1761393049454,-653.27,0.00033975,9]
[392351504,1761393049463,-500.0,0.00033975,9]
[392351505,1761393049472,-500.0,0.00033975,9]
[392351506,1761393049481,-500.0,0.00033975,9]
[392351507,1761393049489,-500.0,0.00033976,9]
[392351508,1761393049498,-500.0,0.00033976,9]
[392351509,1761393049507,-500.0,0.00033976,9]
[392351510,1761393049516,-781.72,0.00033976,9]
[392351511,1761393049525,-500.0,0.00033976,9]
[392351512,1761393049534,-500.0,0.00033976,9]
[392351513,1761393049543,-500.0,0.00033976,9]
[392351514,1761393049552,-500.0,0.00033976,9]
[392351515,1761393049561,-286.457707,0.00033976,15]
[392351516,1761393049570,-500.0,0.00033976,9]
[392351517,1761393049579,-500.0,0.00033976,9]
[392351518,1761393049589,-500.0,0.00033976,9]
[392351519,1761393049598,-500.0,0.00033976,9]
[392351520,1761393049607,-3162.18,0.00033976,9]
[392351521,1761393049616,-500.0,0.00033976,9]
[392351522,1761393049626,-731.24,0.00033976,9]
[392351523,1761393049635,-300.0,0.0003398,2]
[392351524,1761393049644,-151.0,0.0003398,30]
[392351525,1761393049653,-151.0,0.0003398,30]
[392351526,1761393049662,-500.0,0.00033983,7]
[392351527,1761393049671,-13334.9307404,0.00033988,3]
[392351528,1761393049681,-287.938335,0.0003399,30]
[392351529,1761393049691,-151.0,0.0003399,30]
[392351530,1761393049701,-253.665727,0.0003399,30]
[392351531,1761393049711,-26669.8614807,0.0003399,3]
[392351532,1761393049720,-48234.0385313,0.0003399,3]
[392351533,1761393049729,-3613.0,0.00033998,7]
[392351534,1761393049741,-85602.77777124,0.00034,120]
[392351535,1761393049751,-179.056964,0.00034,30]
[392351536,1761393049761,-200.0,0.00034016,10]
[392351537,1761393049771,-885.44,0.00034056,9]
[392351538,1761393049781,-8039.00642189,0.00034057,3]
[392351539,1761393049791,-72351.057797,0.00034067,3]
[392351540,1761393049800,-501.72869139,0.00034073,5]
[392351541,1761393049811,-502.73140897,0.00034073,5]
[392351542,1761393049820,-506.95549091,0.00034073,5]
[392351543,1761393049830,-1247.45687279,0.00034076,2]
[392351544,1761393049839,-500.0,0.00034076,9]
[392351545,1761393049848,-885.44,0.00034076,9]
[392351546,1761393049857,-8039.00642189,0.00034076,3]
[392351547,1761393049867,-500.0,0.00034077,9]
[392351548,1761393049879,-500.0,0.00034077,9]
[392351549,1761393049889,-626.21,0.00034077,9]
[392351550,1761393049899,-500.0,0.00034077,9]
[392351551,1761393049908,-500.0,0.00034077,9]
[392351552,1761393049917,-500.0,0.00034077,9]
[392351553,1761393049927,-625.09,0.00034077,9]
[392351554,1761393049937,-500.0,0.00034077,9]
[392351555,1761393049947,-500.0,0.00034077,9]
[392351556,1761393049956,-500.0,0.00034077,9]
[392351557,1761393049965,-500.0,0.00034077,9]
[392351558,1761393049974,-500.0,0.00034077,9]
[392351559,1761393049983,-500.0,0.00034077,9]
[392351560,1761393049992,-500.0,0.00034077,9]
[392351561,1761393050001,-500.0,0.00034077,9]
[392351562,1761393050011,-500.0,0.00034077,9]
[392351563,1761393050021,-500.0,0.00034077,9]
[392351564,1761393050030,-500.0,0.00034077,9]
[392351565,1761393050039,-500.0,0.00034077,9]
[392351566,1761393050049,-500.0,0.00034077,9]
[392351567,1761393050061,-500.0,0.00034077,9]
[392351568,1761393050071,-500.0,0.00034077,9]
[392351569,1761393050081,-500.0,0.00034077,9]
[392351570,1761393050090,-500.0,0.00034077,9]
[392351571,1761393050100,-500.0,0.00034077,9]
[392351572,1761393050110,-500.0,0.00034077,9]
[392351573,1761393050120,-500.0,0.00034077,9]
[392351574,1761393050132,-500.0,0.00034077,9]
[392351575,1761393050142,-500.0,0.00034077,9]
[392351576,1761393050152,-500.0,0.00034077,9]
[392351577,1761393050166,-500.0,0.00034077,9]
[392351578,1761393050175,-500.0,0.00034077,9]
[392351579,1761393050185,-500.0,0.00034077,9]
[392351580,1761393050195,-500.0,0.00034077,9]
[392351581,1761393050206,-500.0,0.00034077,9]
[392351582,1761393050215,-151.0,0.00034077,30]
[392351583,1761393050224,-816.06,0.00034077,9]
[392351584,1761393050233,-563.33,0.00034077,9]
[392351585,1761393050243,-500.0,0.00034077,9]
[392351586,1761393050252,-500.0,0.00034077,9]
[392351587,1761393050261,-500.0,0.00034077,9]
[392351588,1761393050270,-253.53,0.00034077,14]
[392351589,1761393050279,-500.0,0.00034077,9]
[392351590,1761393050288,-500.0,0.00034077,9]
[392351591,1761393050298,-500.0,0.00034077,9]
[392351592,1761393050307,-500.0,0.00034077,9]
[392351593,1761393050316,-500.0,0.00034077,9]
[392351594,1761393050326,-361.72160013,0.00034077,9]
[392351595,1761393050335,-500.0,0.00034077,9]
[392351596,1761393050344,-500.0,0.00034077,9]
[392351597,1761393050354,-500.0,0.00034077,9]
[392351598,1761393050363,-500.0,0.00034077,9]
[392351599,1761393050373,-500.0,0.00034077,9]
[392351600,1761393050382,-500.0,0.00034077,9]
[392351601,1761393050391,-500.0,0.00034077,9]
[392351602,1761393050399,-500.0,0.00034077,9]
[392351603,1761393050407,-500.0,0.00034077,9]
[392351604,1761393050417,-500.0,0.00034077,9]
[392351605,1761393050427,-500.0,0.00034077,9]
[392351606,1761393050436,-500.0,0.00034077,9]
[392351607,1761393050445,-327.90484999,0.00034077,9]
[392351608,1761393050455,-582.44458999,0.00034077,9]
[392351609,1761393050466,-500.0,0.00034077,9]
[392351610,1761393050476,-516.622223,0.00034077,9]
[392351611,1761393050486,-500.0,0.00034077,9]
[392351612,1761393050496,-500.0,0.00034077,9]
[392351613,1761393050505,-506.96877417,0.00034077,9]
[392351614,1761393050515,-500.0,0.00034077,9]
[392351615,1761393050525,-616.84,0.00034077,9]
[392351616,1761393050537,-500.0,0.00034077,9]
[392351617,1761393050547,-519.07396254,0.00034077,9]
[392351618,1761393050558,-520.16935885,0.00034077,9]
[392351619,1761393050567,-500.0,0.00034077,9]
[392351620,1761393050577,-500.0,0.00034077,9]
[392351621,1761393050587,-500.0,0.00034077,9]
[392351622,1761393050598,-500.0,0.00034077,9]
[392351623,1761393050608,-508.79995285,0.00034077,9]
[392351624,1761393050618,-500.0,0.00034077,9]
[392351625,1761393050629,-503.1163147,0.00034077,9]
[392351626,1761393050639,-500.0,0.00034077,9]
[392351627,1761393050648,-500.0,0.00034077,2]
[392351628,1761393050658,-500.0,0.00034077,9]
[392351629,1761393050668,-500.0,0.00034077,9]
[392351630,1761393050679,-529.13,0.00034077,9]
[392351631,1761393050688,-500.0,0.00034077,9]
[392351632,1761393050698,-738.14,0.00034077,2]
[392351633,1761393050708,-500.0,0.00034077,9]
[392351634,1761393050718,-4282.98,0.00034077,2]
[392351635,1761393050727,-505.8,0.00034077,9]
[392351636,1761393050737,-500.0,0.00034077,9]
[392351637,1761393050747,-500.0,0.00034077,9]
[392351638,1761393050757,-500.0,0.00034077,9]
[392351639,1761393050767,-500.0,0.00034077,2]
[392351640,1761393050776,-500.0,0.00034077,9]
[392351641,1761393050786,-500.0,0.00034077,9]
[392351642,1761393050795,-500.0,0.00034077,9]
[392351643,1761393050805,-500.0,0.00034077,9]
[392351644,1761393050815,-500.0,0.00034077,9]
[392351645,1761393050825,-500.0,0.00034077,9]
[392351646,1761393050836,-509.75,0.00034077,9]
[392351647,1761393050846,-505.52,0.00034077,9]
[392351648,1761393050855,-517.77,0.00034077,9]
[392351649,1761393050865,-500.0,0.00034077,9]
[392351650,1761393050875,-500.0,0.00034077,9]
[392351651,1761393050885,-500.0,0.00034077,9]
[392351652,1761393050895,-549.76,0.00034077,9]
[392351653,1761393050905,-500.0,0.00034077,9]
[392351654,1761393050915,-500.0,0.00034077,9]
[392351655,1761393050926,-500.0,0.00034077,9]
[392351656,1761393050936,-500.0,0.00034077,9]
[392351657,1761393050946,-500.0,0.00034077,9]
[392351658,1761393050956,-500.0,0.00034077,9]
[392351659,1761393050967,-500.0,0.00034077,9]
[392351660,1761393050979,-500.0,0.00034077,9]
[392351661,1761393050989,-500.0,0.00034077,9]
[392351662,1761393050999,-500.0,0.00034077,9]
[392351663,1761393051008,-512.59321847,0.00034077,9]
[392351664,1761393051018,-500.0,0.00034077,9]
[392351665,1761393051028,-500.0,0.00034077,9]
[392351666,1761393051038,-500.0,0.00034077,9]
[392351667,1761393051048,-500.0,0.00034077,9]
[392351668,1761393051057,-500.0,0.00034077,9]
[392351669,1761393051067,-500.0,0.00034077,9]
[392351670,1761393051077,-500.0,0.00034077,9]
[392351671,1761393051086,-500.0,0.00034077,9]
[392351672,1761393051095,-500.0,0.00034077,9]
[392351673,1761393051105,-500.0,0.00034077,9]
[392351674,1761393051116,-732.73,0.00034077,9]
[392351675,1761393051126,-500.0,0.00034077,9]
[392351676,1761393051135,-500.0,0.00034077,9]
[392351677,1761393051145,-500.0,0.00034077,9]
[392351678,1761393051159,-500.0,0.00034077,9]
[392351679,1761393051169,-500.0,0.00034077,9]
[392351680,1761393051179,-500.0,0.00034077,9]
[392351681,1761393051188,-500.0,0.00034077,9]
[392351682,1761393051199,-500.0,0.00034077,9]
[392351683,1761393051208,-500.0,0.00034077,9]
[392351684,1761393051218,-500.0,0.00034077,9]
[392351685,1761393051227,-500.0,0.00034077,9]
[392351686,1761393051238,-500.0,0.00034077,9]
[392351687,1761393051247,-500.0,0.00034077,9]
[392351688,1761393051256,-500.0,0.00034077,9]
[392351689,1761393051267,-500.0,0.00034077,9]
[392351690,1761393051277,-500.0,0.00034077,9]
[392351691,1761393051286,-652.55,0.00034077,9]
[392351692,1761393051296,-500.0,0.00034077,9]
[392351693,1761393051306,-500.0,0.00034077,9]
[392351694,1761393051315,-500.0,0.00034077,9]
[392351695,1761393051324,-500.0,0.00034077,9]
[392351696,1761393051334,-500.0,0.00034077,9]
[392351697,1761393051344,-500.0,0.00034077,9]
[392351698,1761393051353,-500.0,0.00034077,9]
[392351699,1761393051363,-500.0,0.00034077,9]
[392351700,1761393051372,-500.0,0.00034077,9]
[392351701,1761393051382,-500.0,0.00034077,9]
[392351702,1761393051391,-500.0,0.00034077,9]
[392351703,1761393051401,-500.0,0.00034077,9]
[392351704,1761393051410,-500.0,0.00034077,9]
[392351705,1761393051421,-500.0,0.00034077,9]
[392351706,1761393051431,-500.0,0.00034077,9]
[392351707,1761393051441,-500.0,0.00034077,9]
[392351708,1761393051452,-500.0,0.00034077,9]
[392351709,1761393051462,-500.0,0.00034077,9]
[392351710,1761393051471,-500.0,0.00034077,9]
[392351711,1761393051481,-150.13607527,0.00034077,9]
[392351712,1761393051490,-500.0,0.00034077,9]
[392351713,1761393051500,-500.0,0.00034077,9]
[392351714,1761393051510,-500.0,0.00034077,9]
[392351715,1761393051519,-500.0,0.00034077,9]
[392351716,1761393051529,-500.0,0.00034077,9]
[392351717,1761393051539,-500.0,0.00034077,9]
[392351718,1761393051548,-500.0,0.00034077,9]
[392351719,1761393051558,-500.0,0.00034077,9]
[392351720,1761393051567,-685.58,0.00034077,9]
[392351721,1761393051576,-612.48,0.00034077,9]
[392351722,1761393051585,-500.0,0.00034077,9]
[392351723,1761393051594,-500.0,0.00034077,9]
[392351724,1761393051604,-500.0,0.00034077,9]
[392351725,1761393051613,-500.0,0.00034077,9]
[392351726,1761393051622,-500.0,0.00034077,9]
[392351727,1761393051632,-500.0,0.00034077,9]